fUST/lending_fUST_20250501
["ID","MTS","AMOUNT","RATE_DAILY","PERIOD"]
[359529595,1746094250166,-151.0,0.00035616,2]
[359529596,1746094250176,-151.37888981,0.00035616,2]
[359529597,1746094250187,-500.0,0.00035616,2]
[359529598,1746094250196,-500.0,0.00035616,2]
[359529599,1746094250205,-352.29440871,0.00035616,2]
[359529600,1746094250213,-151.0,0.00035616,2]
[359529601,1746094250225,-151.17750697,0.00035616,2]
[359529602,1746094250234,-500.0,0.00035616,2]
[359529603,1746094250244,-500.0,0.00035616,2]
[359529604,1746094250256,-303.13390591,0.00035616,2]
[359529605,1746094250265,-176.0,0.00036,2]
[359529606,1746094250274,-2000.0,0.00036049,4]
[359529607,1746094250283,-4706.8,0.000361,30]
[359529608,1746094250292,-4895.7,0.000361,7]
[359529609,1746094250301,-150.0,0.00036116,2]
[359529610,1746094250311,-545.0,0.00036116,2]
[359529611,1746094250320,-707.0,0.00036116,2]
[359529612,1746094250330,-2245.0,0.00036116,2]
[359529613,1746094250339,-174.76,0.00036294,7]
[359529614,1746094250349,-174.76,0.00036294,7]
[359529615,1746094250358,-250.0,0.000363,30]
[359529616,1746094250368,-153.0,0.00036411,30]
[359529617,1746094250377,-153.0,0.00036411,30]
[359529618,1746094250387,-153.0,0.00036411,30]
[359529619,1746094250396,-153.0,0.00036411,30]
[359529620,1746094250406,-264.787951,0.00036438,14]
[359529621,1746094250415,-264.787949,0.00036438,14]
[359529622,1746094250425,-597.9892193,0.00036438,4]
[359529623,1746094250435,-2258.0,0.00036611,2]
[359529624,1746094250445,-362.0172928,0.00036629,30]
[359529625,1746094250456,-362.0172928,0.00036629,30]
[359529626,1746094250466,-362.0172928,0.00036629,30]
[359529627,1746094250476,-362.0172928,0.00036629,30]
[359529628,1746094250486,-5000.0,0.00036674,2]
[359529629,1746094250496,-500.0,0.00036986,4]
[359529630,1746094250505,-1890.59,0.00037,30]
[359529632,1746094250515,-200.68362775,0.00037,2]
[359529634,1746094250525,-2000.0,0.00037037,4]
[359529635,1746094250535,-3000.0,0.00037067,5]
[359529637,1746094250544,-151.0,0.00037207,14]
[359529638,1746094250554,-212.485294,0.00037207,14]
[359529639,1746094250563,-212.485294,0.00037207,14]
[359529640,1746094250573,-341.119758,0.00037207,14]
[359529641,1746094250582,-341.119758,0.00037207,14]
[359529642,1746094250592,-160.0,0.000373,7]
[359529643,1746094250601,-12595.7684382,0.000373,7]
[359529644,1746094250611,-157.46577,0.000373,14]
[359529645,1746094250619,-157.46577,0.000373,14]
[359529647,1746094250629,-151.0,0.000373,14]
[359529649,1746094250638,-734.530001,0.000373,14]
[359529651,1746094250647,-155.458248,0.000373,14]
[359529653,1746094250657,-734.530004,0.000373,14]
[359529655,1746094250667,-155.458243,0.000373,14]
[359529657,1746094250676,-208.342809,0.000373,14]
[359529659,1746094250687,-208.342809,0.000373,14]
[359529661,1746094250696,-151.0,0.000373,14]
[359529663,1746094250706,-970.490497,0.000373,14]
[359529665,1746094250715,-970.490506,0.000373,14]
[359529667,1746094250724,-442.590134,0.000373,14]
[359529669,1746094250735,-442.590136,0.000373,14]
[359529671,1746094250744,-500.0,0.00037356,120]
[359529673,1746094250753,-183.91,0.00037356,120]
[359529675,1746094250763,-500.0,0.00037356,120]
[359529677,1746094250772,-50414.15,0.000374,30]
[359529678,1746094250781,-151.0,0.000374,14]
[359529680,1746094250790,-151.0,0.000374,14]
[359529682,1746094250800,-4706.8,0.000374,30]
[359529683,1746094250810,-4895.7,0.000374,7]
[359529684,1746094250819,-247.04660213,0.000374,2]
[359529685,1746094250829,-403.0,0.00037425,2]
[359529686,1746094250838,-403.0,0.00037425,2]
[359529687,1746094250848,-1500.0,0.00037771,5]
[359529688,1746094250857,-1500.0,0.00037771,5]
[359529689,1746094250867,-1500.0,0.00037771,5]
[359529690,1746094250876,-1500.0,0.00037771,5]
[359529691,1746094250886,-1500.0,0.00037771,5]
[359529692,1746094250895,-1500.0,0.00037771,2]
[359529693,1746094250905,-1500.0,0.00037771,5]
[359529694,1746094250915,-1500.0,0.00037771,5]
[359529695,1746094250924,-1500.0,0.00037771,5]
[359529696,1746094250934,-182.07995741,0.00037777,2]
[359529697,1746094250943,-421.4777418,0.00037777,2]
[359529698,1746094250952,-12595.7684382,0.00037777,2]
[359529699,1746094250961,-452876.65528,0.00037999,2]
[359529700,1746094250970,-5145.64072927,0.00038,30]
[359529701,1746094250980,-1000.29132133,0.00038,7]
[359529702,1746094250989,-5189.0,0.00038,2]
[359529703,1746094250998,-5189.0,0.00038,2]
[359529704,1746094251009,-5189.0,0.00038,2]
[359529705,1746094251018,-5189.0,0.00038,2]
[359529706,1746094251028,-5189.0,0.00038,2]
[359529707,1746094251145,-5189.0,0.00038,2]
[359529708,1746094251155,-5189.0,0.00038,2]
[359529709,1746094251164,-5189.0,0.00038,2]
[359529710,1746094251173,-5189.0,0.00038,2]
[359529711,1746094251184,-5189.0,0.00038,2]
[359529712,1746094251193,-151.0,0.00038,14]
[359529713,1746094251202,-156.893763,0.00038,14]
[359529714,1746094251212,-156.893771,0.00038,14]
[359529715,1746094251222,-151.0,0.00038,14]
[359529716,1746094251230,-153.917845,0.00038,14]
[359529717,1746094251240,-151.0,0.00038,14]
[359529718,1746094251250,-151.0,0.00038,14]
[359529720,1746094251260,-157.46577,0.00038,14]
[359529722,1746094251269,-157.46577,0.00038,14]
[359529723,1746094251278,-435.933854,0.00038,2]
[359529725,1746094251288,-435.933846,0.00038,2]
[359529726,1746094251297,-151.0,0.00038,14]
[359529727,1746094251307,-293.279878,0.00038,14]
[359529728,1746094251316,-212.485294,0.00038,14]
[359529729,1746094251326,-212.485294,0.00038,14]
[359529730,1746094251336,-341.119758,0.00038,14]
[359529731,1746094251345,-341.119758,0.00038,14]
[359529732,1746094251357,-186.584867,0.00038,14]
[359529733,1746094251366,-186.584874,0.00038,14]
[359529734,1746094251376,-1233.0,0.00038,10]
[359529735,1746094251386,-2000.0,0.00038025,4]
[359529736,1746094251396,-1881.47591277,0.00038156,14]
[359529737,1746094251405,-615.61806303,0.00038189,3]
[359529738,1746094251413,-1388.44167601,0.00038256,2]
[359529739,1746094251422,-160.0,0.00038265,2]
[359529740,1746094251432,-160.0,0.00038265,2]
[359529741,1746094251441,-200.0,0.000383,3]
[359529742,1746094251451,-231.6,0.000383,14]
[359529743,1746094251460,-271.8,0.000383,14]
[359529744,1746094251471,-3000.0,0.000383,35]
[359529745,1746094251480,-501.22274592,0.000383,14]
[359529746,1746094251490,-160.0,0.000383,56]
[359529747,1746094251500,-500.0,0.000383,14]
[359529748,1746094251509,-250.0,0.000383,30]
[359529749,1746094251519,-3000.0,0.0003831,35]
[359529750,1746094251530,-503.11686156,0.00038319,7]
[359529751,1746094251540,-3000.0,0.0003832,35]
[359529752,1746094251550,-3000.0,0.0003833,35]
[359529753,1746094251560,-3000.0,0.0003834,35]
[359529754,1746094251570,-5000.0,0.00038341,2]
[359529755,1746094251580,-3000.0,0.0003835,35]
[359529756,1746094251592,-157.68,0.00038356,2]
[359529757,1746094251603,-400.0,0.00038356,12]
[359529758,1746094251612,-400.0,0.00038356,12]
[359529759,1746094251622,-400.0,0.00038356,12]
[359529760,1746094251632,-400.0,0.00038356,12]
[359529761,1746094251643,-400.0,0.00038356,12]
[359529762,1746094251652,-400.0,0.00038356,12]
[359529763,1746094251662,-400.0,0.00038356,12]
[359529764,1746094251672,-400.0,0.00038356,12]
[359529765,1746094251681,-241.20120583,0.00038356,12]
[359529766,1746094251691,-151.0,0.00038356,14]
[359529767,1746094251700,-151.0,0.00038356,14]
[359529768,1746094251710,-529.81655266,0.00038356,12]
[359529769,1746094251720,-400.0,0.00038356,12]
[359529770,1746094251729,-400.0,0.00038356,12]
[359529771,1746094251739,-400.0,0.00038356,12]
[359529772,1746094251748,-400.0,0.00038356,12]
[359529773,1746094251757,-400.0,0.00038356,12]
[359529774,1746094251767,-400.0,0.00038356,12]
[359529775,1746094251777,-400.0,0.00038356,12]
[359529776,1746094251786,-300.0,0.00038356,12]
[359529777,1746094251795,-153.917845,0.00038356,14]
[359529778,1746094251806,-153.917845,0.00038356,14]
[359529779,1746094251817,-153.917845,0.00038356,14]
[359529780,1746094251827,-153.917849,0.00038356,14]
[359529781,1746094251837,-400.0,0.00038356,12]
[359529782,1746094251846,-400.0,0.00038356,12]
[359529783,1746094251855,-400.0,0.00038356,12]
[359529784,1746094251864,-400.0,0.00038356,12]
[359529785,1746094251873,-383.45219457,0.00038356,12]
[359529786,1746094251882,-400.0,0.00038356,12]
[359529787,1746094251891,-200.0,0.00038356,12]
[359529788,1746094251901,-400.0,0.00038356,12]
[359529789,1746094251910,-400.0,0.00038356,12]
[359529790,1746094251920,-151.0,0.00038356,14]
[359529791,1746094251929,-517.35276652,0.00038356,12]
[359529792,1746094251939,-151.0,0.00038356,14]
[359529793,1746094251948,-400.0,0.00038356,12]
[359529794,1746094251958,-400.0,0.00038356,12]
[359529795,1746094251967,-400.0,0.00038356,12]
[359529796,1746094251977,-197.78565677,0.00038356,12]
[359529797,1746094251986,-400.0,0.00038356,12]
[359529798,1746094251996,-400.0,0.00038356,12]
[359529799,1746094252005,-400.0,0.00038356,12]
[359529800,1746094252015,-400.0,0.00038356,12]
[359529801,1746094252025,-400.0,0.00038356,12]
[359529802,1746094252034,-304.15235945,0.00038356,12]
[359529803,1746094252044,-151.0,0.00038356,14]
[359529804,1746094252053,-151.0,0.00038356,14]
[359529805,1746094252062,-151.0,0.00038356,14]
[359529806,1746094252072,-400.0,0.00038356,12]
[359529807,1746094252081,-400.0,0.00038356,12]
[359529808,1746094252090,-400.0,0.00038356,12]
[359529809,1746094252099,-400.0,0.00038356,12]
[359529810,1746094252108,-400.0,0.00038356,12]
[359529811,1746094252118,-400.0,0.00038356,12]
[359529812,1746094252127,-400.0,0.00038356,12]
[359529813,1746094252136,-300.0,0.00038356,12]
[359529814,1746094252145,-400.0,0.00038356,12]
[359529815,1746094252155,-400.0,0.00038356,12]
[359529816,1746094252164,-403.14984915,0.00038356,12]
[359529817,1746094252176,-501.2329953,0.00038356,12]
[359529818,1746094252186,-400.0,0.00038356,12]
[359529819,1746094252195,-400.0,0.00038356,12]
[359529820,1746094252205,-400.0,0.00038356,12]
[359529821,1746094252214,-400.0,0.00038356,12]
[359529822,1746094252226,-400.0,0.00038356,12]
[359529823,1746094252235,-400.0,0.00038356,12]
[359529824,1746094252244,-400.0,0.00038356,12]
[359529825,1746094252255,-400.0,0.00038356,12]
[359529826,1746094252264,-400.0,0.00038356,12]
[359529827,1746094252274,-400.0,0.00038356,12]
[359529828,1746094252284,-172.44338151,0.00038356,12]
[359529829,1746094252293,-400.0,0.00038356,12]
[359529830,1746094252303,-400.0,0.00038356,12]
[359529831,1746094252313,-400.0,0.00038356,12]
[359529832,1746094252323,-400.0,0.00038356,12]
[359529833,1746094252333,-400.0,0.00038356,12]
[359529834,1746094252342,-169.23546859,0.00038356,12]
[359529835,1746094252354,-200.79543586,0.00038356,12]
[359529836,1746094252363,-400.0,0.00038356,12]
[359529837,1746094252372,-314.83806076,0.00038356,12]
[359529838,1746094252382,-2578.7,0.00038356,12]
[359529839,1746094252393,-2578.7,0.00038356,12]
[359529840,1746094252403,-2578.7,0.00038356,12]
[359529841,1746094252412,-2578.7,0.00038356,12]
[359529842,1746094252423,-2578.7,0.00038356,12]
[359529843,1746094252433,-2578.7,0.00038356,12]
[359529844,1746094252444,-2578.7,0.00038356,12]
[359529845,1746094252453,-2578.7,0.00038356,12]
[359529846,1746094252463,-2578.7,0.00038356,12]
[359529847,1746094252473,-2578.7,0.00038356,12]
[359529848,1746094252483,-2578.7,0.00038356,12]
[359529849,1746094252494,-2578.7,0.00038356,12]
[359529850,1746094252505,-2578.7,0.00038356,12]
[359529851,1746094252514,-2578.7,0.00038356,12]
[359529852,1746094252525,-2578.7,0.00038356,12]
[359529853,1746094252536,-2578.7,0.00038356,12]
[359529854,1746094252545,-2578.7,0.00038356,12]
[359529855,1746094252555,-2578.7,0.00038356,12]
[359529856,1746094252564,-2578.7,0.00038356,12]
[359529857,1746094252573,-2578.7,0.00038356,12]
[359529858,1746094252583,-2578.7,0.00038356,12]
[359529859,1746094252592,-2578.7,0.00038356,12]
[359529860,1746094252601,-2578.7,0.00038356,12]
[359529861,1746094252610,-2578.84262,0.00038356,12]
[359529862,1746094252621,-157.46577,0.00038356,14]
[359529863,1746094252630,-157.46577,0.00038356,14]
[359529864,1746094252640,-157.46577,0.00038356,14]
[359529865,1746094252650,-157.465778,0.00038356,14]
[359529866,1746094252660,-1495.013246,0.00038356,2]
[359529867,1746094252669,-1495.01323785,0.00038356,2]
[359529868,1746094252678,-400.0,0.00038356,12]
[359529869,1746094252689,-400.0,0.00038356,12]
[359529870,1746094252698,-400.0,0.00038356,12]
[359529871,1746094252707,-400.0,0.00038356,12]
[359529872,1746094252716,-400.0,0.00038356,12]
[359529873,1746094252725,-400.0,0.00038356,12]
[359529874,1746094252735,-400.0,0.00038356,12]
[359529875,1746094252744,-400.0,0.00038356,12]
[359529876,1746094252754,-400.0,0.00038356,12]
[359529877,1746094252764,-400.0,0.00038356,12]
[359529878,1746094252773,-400.0,0.00038356,12]
[359529879,1746094252782,-161.47787114,0.00038356,12]
[359529880,1746094252792,-400.0,0.00038356,12]
[359529881,1746094252801,-400.0,0.00038356,12]
[359529882,1746094252811,-400.0,0.00038356,12]
[359529883,1746094252821,-400.0,0.00038356,12]
[359529884,1746094252935,-400.0,0.00038356,12]
[359529885,1746094252945,-204.8254747,0.00038356,12]
[359529886,1746094252955,-151.0,0.00038356,14]
[359529887,1746094252964,-400.0,0.00038356,12]
[359529888,1746094252973,-400.0,0.00038356,12]
[359529889,1746094252982,-400.0,0.00038356,12]
[359529890,1746094252991,-400.0,0.00038356,12]
[359529891,1746094253001,-400.0,0.00038356,12]
[359529892,1746094253010,-400.0,0.00038356,12]
[359529893,1746094253020,-400.0,0.00038356,12]
[359529894,1746094253029,-400.0,0.00038356,12]
[359529895,1746094253038,-400.0,0.00038356,12]
[359529896,1746094253047,-400.0,0.00038356,12]
[359529897,1746094253057,-400.0,0.00038356,12]
[359529898,1746094253066,-400.0,0.00038356,12]
[359529899,1746094253075,-400.0,0.00038356,12]
[359529900,1746094253085,-305.66055854,0.00038356,12]
[359529901,1746094253094,-293.279878,0.00038356,14]
[359529902,1746094253104,-293.279878,0.00038356,14]
[359529903,1746094253113,-293.27987,0.00038356,14]
[359529904,1746094253122,-400.0,0.00038356,12]
[359529905,1746094253132,-182.71546524,0.00038356,12]
[359529906,1746094253142,-400.0,0.00038356,12]
[359529907,1746094253151,-400.0,0.00038356,12]
[359529908,1746094253161,-400.0,0.00038356,12]
[359529909,1746094253172,-400.0,0.00038356,12]
[359529910,1746094253192,-400.0,0.00038356,12]
[359529911,1746094253210,-400.0,0.00038356,12]
[359529912,1746094253223,-400.0,0.00038356,12]
[359529913,1746094253232,-400.0,0.00038356,12]
[359529914,1746094253241,-400.0,0.00038356,12]
[359529915,1746094253250,-400.0,0.00038356,12]
[359529916,1746094253260,-400.0,0.00038356,12]
[359529917,1746094253270,-400.0,0.00038356,12]
[359529918,1746094253279,-400.0,0.00038356,12]
[359529919,1746094253288,-400.0,0.00038356,12]
[359529920,1746094253298,-400.0,0.00038356,12]
[359529921,1746094253307,-400.0,0.00038356,12]
[359529922,1746094253316,-400.0,0.00038356,12]
[359529923,1746094253325,-400.0,0.00038356,12]
[359529924,1746094253335,-510.15070122,0.00038356,12]
[359529925,1746094253345,-400.0,0.00038356,12]
[359529926,1746094253356,-400.0,0.00038356,12]
[359529927,1746094253366,-400.0,0.00038356,12]
[359529928,1746094253375,-400.0,0.00038356,12]
[359529929,1746094253385,-400.0,0.00038356,12]
[359529930,1746094253395,-400.0,0.00038356,12]
[359529931,1746094253406,-400.0,0.00038356,12]
[359529932,1746094253417,-400.0,0.00038356,12]
[359529933,1746094253426,-400.0,0.00038356,12]
[359529934,1746094253437,-400.0,0.00038356,12]
[359529935,1746094253446,-400.0,0.00038356,12]
[359529936,1746094253455,-400.0,0.00038356,12]
[359529937,1746094253465,-400.0,0.00038356,12]
[359529938,1746094253475,-400.0,0.00038356,12]
[359529939,1746094253484,-400.0,0.00038356,12]
[359529940,1746094253493,-400.0,0.00038356,12]
[359529941,1746094253502,-449.40678066,0.00038356,12]
[359529942,1746094253511,-400.0,0.00038356,12]
[359529943,1746094253521,-400.0,0.00038356,12]
[359529944,1746094253530,-231.44414669,0.00038356,12]
[359529945,1746094253539,-400.0,0.00038356,12]
[359529946,1746094253549,-400.0,0.00038356,12]
[359529947,1746094253558,-400.0,0.00038356,12]
[359529948,1746094253567,-400.0,0.00038356,12]
[359529949,1746094253576,-400.0,0.00038356,12]
[359529950,1746094253586,-400.0,0.00038356,12]
[359529951,1746094253595,-400.0,0.00038356,12]
[359529952,1746094253605,-400.0,0.00038356,12]
[359529953,1746094253614,-400.0,0.00038356,12]
[359529954,1746094253624,-400.0,0.00038356,12]
[359529955,1746094253633,-400.0,0.00038356,12]
[359529956,1746094253643,-400.0,0.00038356,12]
[359529957,1746094253653,-400.0,0.00038356,12]
[359529958,1746094253663,-400.0,0.00038356,12]
[359529959,1746094253672,-400.0,0.00038356,12]
[359529960,1746094253682,-225.56235068,0.00038356,12]
[359529961,1746094253694,-200.0,0.00038356,12]
[359529962,1746094253703,-511.95057502,0.00038356,12]
[359529963,1746094253713,-400.0,0.00038356,12]
[359529964,1746094253722,-400.0,0.00038356,12]
[359529965,1746094253732,-400.0,0.00038356,12]
[359529966,1746094253742,-400.0,0.00038356,12]
[359529967,1746094253751,-400.0,0.00038356,12]
[359529968,1746094253762,-501.74171526,0.00038356,12]
[359529969,1746094253772,-400.0,0.00038356,12]
[359529970,1746094253781,-400.0,0.00038356,12]
[359529971,1746094253791,-400.0,0.00038356,12]
[359529972,1746094253800,-400.0,0.00038356,12]
[359529973,1746094253810,-400.0,0.00038356,12]
[359529974,1746094253819,-400.0,0.00038356,12]
[359529975,1746094253828,-400.0,0.00038356,12]
[359529976,1746094253838,-400.0,0.00038356,12]
[359529977,1746094253847,-400.0,0.00038356,12]
[359529978,1746094253857,-400.0,0.00038356,12]
[359529979,1746094253866,-400.0,0.00038356,12]
[359529980,1746094253875,-400.88803572,0.00038356,12]
[359529981,1746094253885,-501.20416934,0.00038356,2]
[359529982,1746094253894,-212.485294,0.00038356,14]
[359529983,1746094253903,-400.0,0.00038356,12]
[359529984,1746094253913,-400.0,0.00038356,12]
[359529985,1746094253922,-400.0,0.00038356,12]
[359529986,1746094253931,-400.0,0.00038356,12]
[359529987,1746094253942,-501.77811824,0.00038356,12]
[359529988,1746094253952,-400.0,0.00038356,12]
[359529989,1746094253961,-338.73238175,0.00038356,12]
[359529990,1746094253970,-405.5411329,0.00038356,12]
[359529991,1746094253980,-212.485284,0.00038356,14]
[359529992,1746094253989,-187.59882572,0.00038356,12]
[359529993,1746094253998,-260.11540224,0.00038356,12]
[359529994,1746094254008,-400.0,0.00038356,12]
[359529995,1746094254017,-400.0,0.00038356,12]
[359529996,1746094254026,-400.0,0.00038356,12]
[359529997,1746094254035,-503.20273303,0.00038356,12]
[359529998,1746094254045,-502.02247912,0.00038356,12]
[359529999,1746094254054,-400.0,0.00038356,12]
[359530000,1746094254063,-400.0,0.00038356,12]
[359530001,1746094254073,-400.0,0.00038356,12]
[359530002,1746094254082,-400.0,0.00038356,12]
[359530003,1746094254092,-400.0,0.00038356,12]
[359530004,1746094254102,-400.0,0.00038356,12]
[359530005,1746094254116,-400.0,0.00038356,12]
[359530006,1746094254125,-400.0,0.00038356,12]
[359530007,1746094254135,-510.50082755,0.00038356,12]
[359530008,1746094254144,-400.0,0.00038356,12]
[359530009,1746094254153,-404.66842732,0.00038356,12]
[359530010,1746094254162,-401.6853395,0.00038356,12]
[359530011,1746094254171,-229.64841402,0.00038356,12]
[359530012,1746094254184,-400.0,0.00038356,12]
[359530013,1746094254195,-400.0,0.00038356,12]
[359530014,1746094254204,-400.0,0.00038356,12]
[359530015,1746094254213,-400.0,0.00038356,12]
[359530016,1746094254223,-400.0,0.00038356,12]
[359530017,1746094254232,-400.0,0.00038356,12]
[359530018,1746094254242,-194.38171696,0.00038356,12]
[359530019,1746094254252,-400.0,0.00038356,12]
[359530020,1746094254261,-400.0,0.00038356,12]
[359530021,1746094254271,-501.40283968,0.00038356,12]
[359530022,1746094254280,-400.0,0.00038356,12]
[359530023,1746094254289,-401.16857047,0.00038356,12]
[359530024,1746094254299,-400.0,0.00038356,12]
[359530025,1746094254308,-400.0,0.00038356,12]
[359530026,1746094254318,-400.0,0.00038356,12]
[359530027,1746094254327,-400.0,0.00038356,12]
[359530028,1746094254337,-400.0,0.00038356,12]
[359530029,1746094254346,-400.0,0.00038356,7]
[359530030,1746094254356,-400.0,0.00038356,12]
[359530031,1746094254366,-400.0,0.00038356,7]
[359530032,1746094254375,-154.62434691,0.00038356,12]
[359530033,1746094254384,-502.3562731,0.00038356,7]
[359530034,1746094254393,-501.19424882,0.00038356,12]
[359530035,1746094254402,-400.0,0.00038356,12]
[359530036,1746094254414,-400.0,0.00038356,12]
[359530037,1746094254423,-400.0,0.00038356,12]
[359530038,1746094254433,-400.0,0.00038356,12]
[359530039,1746094254443,-207.1383744,0.00038356,12]
[359530040,1746094254453,-400.0,0.00038356,12]
[359530041,1746094254462,-400.0,0.00038356,12]
[359530042,1746094254471,-400.0,0.00038356,12]
[359530043,1746094254582,-409.98277887,0.00038356,12]
[359530044,1746094254592,-400.0,0.00038356,12]
[359530045,1746094254602,-400.0,0.00038356,12]
[359530046,1746094254614,-400.0,0.00038356,12]
[359530047,1746094254624,-501.14687486,0.00038356,12]
[359530048,1746094254633,-400.0,0.00038356,12]
[359530049,1746094254643,-400.0,0.00038356,12]
[359530050,1746094254653,-400.0,0.00038356,12]
[359530051,1746094254664,-400.0,0.00038356,12]
[359530052,1746094254675,-400.0,0.00038356,12]
[359530053,1746094254685,-400.0,0.00038356,12]
[359530054,1746094254696,-400.0,0.00038356,12]
[359530055,1746094254707,-400.0,0.00038356,12]
[359530056,1746094254717,-400.0,0.00038356,12]
[359530057,1746094254727,-502.98949656,0.00038356,12]
[359530058,1746094254737,-400.0,0.00038356,12]
[359530059,1746094254747,-400.0,0.00038356,12]
[359530060,1746094254757,-400.0,0.00038356,12]
[359530061,1746094254766,-400.0,0.00038356,12]
[359530062,1746094254775,-400.0,0.00038356,12]
[359530063,1746094254785,-400.0,0.00038356,12]
[359530064,1746094254794,-400.0,0.00038356,12]
[359530065,1746094254804,-400.0,0.00038356,12]
[359530066,1746094254814,-400.0,0.00038356,12]
[359530067,1746094254823,-400.0,0.00038356,12]
[359530068,1746094254833,-461.2786718,0.00038356,12]
[359530069,1746094254843,-400.0,0.00038356,12]
[359530070,1746094254853,-406.62882587,0.00038356,12]
[359530071,1746094254862,-400.0,0.00038356,12]
[359530072,1746094254872,-400.0,0.00038356,12]
[359530073,1746094254881,-346.07068632,0.00038356,12]
[359530074,1746094254890,-400.0,0.00038356,12]
[359530075,1746094254900,-400.0,0.00038356,12]
[359530076,1746094254909,-400.0,0.00038356,12]
[359530077,1746094254918,-400.0,0.00038356,12]
[359530078,1746094254927,-400.0,0.00038356,12]
[359530079,1746094254937,-252.94391317,0.00038356,12]
[359530080,1746094254947,-400.0,0.00038356,12]
[359530081,1746094254955,-400.0,0.00038356,12]
[359530082,1746094254963,-400.0,0.00038356,12]
[359530083,1746094254972,-400.0,0.00038356,12]
[359530084,1746094254980,-400.0,0.00038356,12]
[359530085,1746094254990,-400.0,0.00038356,12]
[359530086,1746094254999,-400.0,0.00038356,12]
[359530087,1746094255009,-400.0,0.00038356,12]
[359530088,1746094255018,-351.07246374,0.00038356,12]
[359530089,1746094255027,-400.0,0.00038356,12]
[359530090,1746094255036,-400.0,0.00038356,12]
[359530091,1746094255045,-402.7978868,0.00038356,12]
[359530092,1746094255055,-400.0,0.00038356,12]
[359530093,1746094255064,-400.0,0.00038356,12]
[359530094,1746094255073,-502.09925764,0.00038356,12]
[359530095,1746094255083,-400.0,0.00038356,12]
[359530096,1746094255093,-400.0,0.00038356,12]
[359530097,1746094255102,-306.98417797,0.00038356,12]
[359530098,1746094255112,-505.10898825,0.00038356,12]
[359530099,1746094255121,-400.0,0.00038356,12]
[359530100,1746094255130,-400.0,0.00038356,12]
[359530101,1746094255140,-400.0,0.00038356,12]
[359530102,1746094255149,-400.0,0.00038356,12]
[359530103,1746094255158,-400.0,0.00038356,12]
[359530104,1746094255167,-400.0,0.00038356,12]
[359530105,1746094255181,-505.27542445,0.00038356,12]
[359530106,1746094255190,-400.0,0.00038356,12]
[359530107,1746094255199,-400.0,0.00038356,12]
[359530108,1746094255208,-400.0,0.00038356,12]
[359530109,1746094255219,-211.21888728,0.00038356,12]
[359530110,1746094255230,-400.0,0.00038356,12]
[359530111,1746094255239,-400.0,0.00038356,12]
[359530112,1746094255248,-400.0,0.00038356,12]
[359530113,1746094255259,-400.0,0.00038356,12]
[359530114,1746094255270,-400.0,0.00038356,12]
[359530115,1746094255279,-400.0,0.00038356,12]
[359530116,1746094255288,-400.0,0.00038356,12]
[359530117,1746094255307,-400.0,0.00038356,12]
[359530118,1746094255325,-251.77019911,0.00038356,12]